fUST/lending_fUST_20250612
["ID","MTS","AMOUNT","RATE_DAILY","PERIOD"]
[365512109,1749730234859,-324.269359,0.00021779,2]
[365512110,1749730234868,-324.269359,0.00021779,2]
[365512111,1749730234877,-5000.0,0.00021779,2]
[365512112,1749730234886,-1092.2095809,0.00021797,6]
[365512113,1749730234895,-1000.0,0.000218,2]
[365512114,1749730234905,-1000.0,0.000218,3]
[365512115,1749730234915,-1000.0,0.000218,4]
[365512116,1749730234924,-151.0,0.000218,2]
[365512117,1749730234933,-835.15920933,0.00021866,2]
[365512118,1749730234944,-160.0,0.00021866,2]
[365512119,1749730234956,-424.26423502,0.00021866,2]
[365512120,1749730234965,-400.0,0.00021917,4]
[365512121,1749730234974,-460.0,0.00021917,4]
[365512122,1749730234983,-460.0,0.00021917,4]
[365512123,1749730234995,-460.0,0.00021917,4]
[365512124,1749730235005,-460.0,0.00021917,4]
[365512125,1749730235014,-460.0,0.00021917,4]
[365512126,1749730235026,-151.0,0.00021962,7]
[365512127,1749730235035,-151.0,0.00021962,7]
[365512128,1749730235044,-1092.2095809,0.00021969,6]
[365512129,1749730235053,-525.97,0.0002198,3]
[365512130,1749730235063,-175.31,0.00021981,3]
[365512131,1749730235072,-1402.52,0.0002199,3]
[365512132,1749730235082,-350.63,0.0002199,3]
[365512133,1749730235091,-460.0,0.00021991,4]
[365512134,1749730235100,-777.48,0.00021991,4]
[365512135,1749730235110,-460.0,0.00021991,4]
[365512136,1749730235119,-3453.15158937,0.00022,7]
[365512137,1749730235132,-151.0,0.00022,7]
[365512138,1749730235141,-151.0,0.00022,7]
[365512139,1749730235150,-151.0,0.00022,7]
[365512140,1749730235159,-331.212048,0.00022,7]
[365512141,1749730235168,-331.212048,0.00022,7]
[365512142,1749730235177,-324.269359,0.00022,7]
[365512143,1749730235187,-324.269359,0.00022,7]
[365512144,1749730235196,-405.0,0.00022057,2]
[365512145,1749730235205,-1351.877723,0.000221,2]
[365512146,1749730235215,-505.3571264,0.00022108,2]
[365512147,1749730235224,-1000.0,0.00022108,2]
[365512148,1749730235233,-1000.0,0.00022108,2]
[365512149,1749730235243,-1000.0,0.00022108,2]
[365512150,1749730235253,-160.89761,0.00022141,7]
[365512151,1749730235262,-1092.2095809,0.00022141,6]
[365512152,1749730235271,-151.0,0.00022175,7]
[365512153,1749730235280,-1347.48467864,0.00022176,2]
[365512154,1749730235290,-387.89754135,0.0002218,2]
[365512155,1749730235300,-460.0,0.00022191,4]
[365512156,1749730235309,-460.0,0.00022191,4]
[365512157,1749730235318,-460.0,0.00022191,4]
[365512158,1749730235327,-460.0,0.00022191,4]
[365512159,1749730235336,-460.0,0.00022191,4]
[365512160,1749730235345,-151.0,0.000222,7]
[365512161,1749730235355,-199.54122257,0.000222,69]
[365512162,1749730235364,-199.54122254,0.000222,69]
[365512163,1749730235374,-199.54122254,0.000222,69]
[365512164,1749730235383,-721.56,0.00022201,7]
[365512165,1749730235393,-701.26,0.00022255,3]
[365512166,1749730235402,-151.0,0.00022265,7]
[365512167,1749730235412,-365.863656,0.00022265,7]
[365512168,1749730235421,-365.863656,0.00022265,7]
[365512169,1749730235430,-460.0,0.00022265,4]
[365512170,1749730235439,-151.0,0.00022265,7]
[365512171,1749730235448,-151.0,0.00022265,7]
[365512172,1749730235458,-777.48,0.00022265,4]
[365512173,1749730235576,-460.0,0.00022265,4]
[365512174,1749730235586,-721.56,0.00022301,2]
[365512175,1749730235595,-1092.2095809,0.00022314,7]
[365512176,1749730235604,-151.0,0.00022314,7]
[365512177,1749730235614,-254.16675,0.00022314,7]
[365512178,1749730235624,-254.16675,0.00022314,7]
[365512179,1749730235634,-151.0,0.00022314,7]
[365512180,1749730235643,-151.0,0.00022379,6]
[365512181,1749730235653,-525.867499,0.00022399,2]
[365512182,1749730235663,-525.867499,0.00022399,2]
[365512183,1749730235672,-151.0,0.00022399,7]
[365512184,1749730235682,-721.56,0.00022401,7]
[365512185,1749730235691,-151.0,0.00022417,7]
[365512186,1749730235701,-151.0,0.0002245,7]
[365512187,1749730235710,-331.212048,0.0002245,7]
[365512188,1749730235720,-331.212048,0.0002245,7]
[365512189,1749730235729,-324.269359,0.0002245,7]
[365512190,1749730235739,-324.269359,0.0002245,7]
[365512191,1749730235752,-151.0,0.00022465,7]
[365512192,1749730235762,-151.0,0.00022465,7]
[365512193,1749730235772,-151.0,0.00022465,7]
[365512194,1749730235782,-373.980021,0.00022465,7]
[365512195,1749730235791,-373.980021,0.00022465,7]
[365512196,1749730235801,-236.077109,0.00022465,7]
[365512197,1749730235811,-236.077109,0.00022465,7]
[365512198,1749730235821,-460.0,0.00022465,4]
[365512199,1749730235831,-11862.37599647,0.00022465,7]
[365512200,1749730235840,-460.0,0.00022465,4]
[365512201,1749730235849,-460.0,0.00022465,4]
[365512202,1749730235858,-460.0,0.00022465,4]
[365512203,1749730235867,-460.0,0.00022465,4]
[365512204,1749730235876,-1092.2095809,0.00022486,7]
[365512205,1749730235886,-721.56,0.00022501,4]
[365512206,1749730235895,-968.0,0.00022507,2]
[365512207,1749730235909,-151.0,0.00022507,7]
[365512208,1749730235927,-151.0,0.00022507,7]
[365512209,1749730235943,-151.0,0.00022507,7]
[365512210,1749730235962,-151.0,0.00022508,7]
[365512211,1749730235974,-151.0,0.00022508,7]
[365512212,1749730235984,-151.0,0.00022508,7]
[365512213,1749730235992,-151.0,0.00022508,7]
[365512214,1749730236005,-155.091398,0.00022513,7]
[365512215,1749730236014,-365.863656,0.00022513,7]
[365512216,1749730236024,-365.863656,0.00022513,7]
[365512217,1749730236033,-151.0,0.00022513,7]
[365512218,1749730236042,-151.0,0.00022539,7]
[365512219,1749730236051,-151.0,0.00022539,7]
[365512220,1749730236060,-228.370737,0.00022539,7]
[365512221,1749730236070,-460.0,0.00022539,4]
[365512222,1749730236080,-777.48,0.00022539,4]
[365512223,1749730236089,-460.0,0.00022539,4]
[365512224,1749730236098,-151.0,0.00022546,7]
[365512225,1749730236108,-331.212048,0.00022546,7]
[365512226,1749730236117,-331.212048,0.00022546,7]
[365512227,1749730236126,-324.269359,0.00022546,7]
[365512228,1749730236135,-324.269359,0.00022546,7]
[365512229,1749730236144,-151.0,0.00022551,7]
[365512230,1749730236153,-254.16675,0.00022551,7]
[365512231,1749730236163,-254.16675,0.00022551,7]
[365512232,1749730236173,-151.0,0.00022551,7]
[365512233,1749730236182,-151.0,0.00022556,7]
[365512234,1749730236192,-151.0,0.00022556,7]
[365512235,1749730236202,-151.0,0.00022556,7]
[365512236,1749730236212,-525.867499,0.00022556,2]
[365512237,1749730236221,-525.867499,0.00022556,2]
[365512238,1749730236231,-373.980021,0.00022556,7]
[365512239,1749730236240,-373.980021,0.00022556,7]
[365512240,1749730236254,-236.077109,0.00022556,7]
[365512241,1749730236275,-236.077109,0.00022556,7]
[365512242,1749730236286,-151.0,0.00022556,7]
[365512243,1749730236296,-151.0,0.00022556,7]
[365512244,1749730236305,-151.0,0.00022556,7]
[365512245,1749730236314,-151.0,0.00022556,7]
[365512246,1749730236324,-963.0,0.00022556,2]
[365512247,1749730236334,-2160.0,0.00022556,2]
[365512248,1749730236343,-653.0,0.00022556,2]
[365512249,1749730236353,-151.0,0.00022557,6]
[365512250,1749730236363,-151.0,0.00022558,7]
[365512251,1749730236372,-151.0,0.00022558,7]
[365512252,1749730236381,-151.0,0.00022558,7]
[365512253,1749730236390,-151.0,0.00022558,7]
[365512254,1749730236400,-151.0,0.00022558,7]
[365512255,1749730236410,-151.0,0.00022558,7]
[365512256,1749730236420,-331.212048,0.00022558,7]
[365512257,1749730236429,-331.212048,0.00022558,7]
[365512258,1749730236439,-151.0,0.00022558,7]
[365512259,1749730236448,-324.269359,0.00022558,7]
[365512260,1749730236458,-151.0,0.00022558,7]
[365512261,1749730236467,-324.269359,0.00022558,7]
[365512262,1749730236477,-365.863656,0.0002256,7]
[365512263,1749730236487,-365.863656,0.0002256,7]
[365512264,1749730236499,-317.0,0.00022569,3]
[365512265,1749730236509,-317.0,0.00022569,3]
[365512266,1749730236519,-317.0,0.00022569,3]
[365512267,1749730236528,-317.0,0.00022569,3]
[365512268,1749730236538,-317.0,0.00022569,3]
[365512269,1749730236548,-324.29868057,0.00022569,3]
[365512270,1749730236558,-1046.22,0.00022588,2]
[365512271,1749730236568,-151.0,0.00022588,7]
[365512272,1749730236578,-1347.48467864,0.00022588,2]
[365512273,1749730236589,-215.0738,0.000226,2]
[365512274,1749730236599,-721.56,0.00022601,3]
[365512275,1749730236608,-501.23081117,0.0002263,2]
[365512276,1749730236618,-397.69405856,0.0002263,2]
[365512277,1749730236628,-500.81929547,0.00022654,2]
[365512278,1749730236639,-500.0,0.00022656,2]
[365512279,1749730236649,-162.85516593,0.00022658,2]
[365512280,1749730236659,-1092.2095809,0.00022659,7]
[365512281,1749730236668,-3000.0,0.000227,2]
[365512282,1749730236678,-319.0,0.000227,2]
[365512283,1749730236688,-721.56,0.00022701,7]
[365512284,1749730236698,-3000.0,0.0002271,2]
[365512285,1749730236708,-331.212048,0.0002271,7]
[365512286,1749730236717,-331.212048,0.0002271,7]
[365512287,1749730236727,-151.0,0.0002271,7]
[365512288,1749730236736,-324.269359,0.0002271,7]
[365512289,1749730236747,-259.102521,0.0002271,7]
[365512290,1749730236756,-324.269359,0.0002271,7]
[365512291,1749730236766,-3000.0,0.0002272,2]
[365512292,1749730236776,-151.0,0.0002272,7]
[365512293,1749730236786,-151.0,0.0002272,7]
[365512294,1749730236795,-3000.0,0.0002273,2]
[365512295,1749730236805,-151.0,0.00022734,6]
[365512296,1749730236814,-460.0,0.00022739,4]
[365512297,1749730236823,-460.0,0.00022739,4]
[365512298,1749730236832,-460.0,0.00022739,4]
[365512299,1749730236842,-460.0,0.00022739,4]
[365512300,1749730236851,-292.56398428,0.00022739,4]
[365512301,1749730236860,-3000.0,0.0002274,2]
[365512302,1749730236870,-3000.0,0.0002275,2]
[365512303,1749730236879,-3000.0,0.0002276,2]
[365512304,1749730236889,-331.212048,0.0002276,7]
[365512305,1749730236899,-331.212048,0.0002276,7]
[365512306,1749730236908,-151.0,0.0002276,7]
[365512307,1749730236918,-324.269359,0.0002276,7]
[365512308,1749730236927,-324.269359,0.0002276,7]
[365512309,1749730236937,-3000.0,0.0002277,2]
[365512310,1749730236951,-158.09369,0.0002277,7]
[365512311,1749730236960,-151.0,0.0002277,7]
[365512312,1749730236970,-3000.0,0.0002278,2]
[365512313,1749730236980,-3000.0,0.0002279,2]
[365512314,1749730236991,-17858.51989667,0.0002279,2]
[365512315,1749730237003,-151.0,0.00022799,7]
[365512316,1749730237014,-151.0,0.00022799,7]
[365512317,1749730237024,-151.0,0.00022799,7]
[365512318,1749730237034,-3000.0,0.000228,2]
[365512319,1749730237043,-1000.0,0.000228,5]
[365512320,1749730237053,-331.212048,0.000228,7]
[365512321,1749730237063,-331.21204,0.000228,7]
[365512322,1749730237072,-151.0,0.000228,7]
[365512323,1749730237081,-324.269359,0.000228,7]
[365512324,1749730237091,-324.269359,0.000228,7]
[365512325,1749730237101,-721.56,0.00022801,7]
[365512326,1749730237110,-3000.0,0.0002281,2]
[365512327,1749730237120,-196.95901,0.0002281,7]
[365512328,1749730237129,-151.0,0.00022813,7]
[365512329,1749730237138,-525.867499,0.00022813,2]
[365512330,1749730237148,-525.867499,0.00022813,2]
[365512331,1749730237158,-151.0,0.00022813,7]
[365512332,1749730237166,-254.16675,0.00022813,7]
[365512333,1749730237176,-254.16675,0.00022813,7]
[365512334,1749730237185,-460.0,0.00022813,4]
[365512335,1749730237194,-151.0,0.00022813,7]
[365512336,1749730237203,-777.48,0.00022813,4]
[365512337,1749730237211,-460.0,0.00022813,4]
[365512338,1749730237221,-3000.0,0.0002282,2]
[365512339,1749730237231,-800.0,0.00022822,2]
[365512340,1749730237241,-259.251392,0.00022825,7]
[365512341,1749730237252,-3000.0,0.0002283,2]
[365512342,1749730237262,-1092.2095809,0.00022831,8]
[365512343,1749730237271,-3000.0,0.0002284,2]
[365512344,1749730237280,-600.0,0.00022848,2]
[365512345,1749730237290,-3000.0,0.0002285,2]
[365512346,1749730237299,-3000.0,0.0002286,2]
[365512347,1749730237309,-3000.0,0.0002287,2]
[365512348,1749730237319,-1745.0,0.00022877,3]
[365512349,1749730237328,-1745.0,0.00022877,3]
[365512350,1749730237337,-1745.0,0.00022877,3]
[365512351,1749730237347,-1745.0,0.00022877,3]
[365512352,1749730237356,-1745.0,0.00022877,3]
[365512353,1749730237365,-1745.0,0.00022877,3]
[365512354,1749730237374,-438.71693277,0.00022877,3]
[365512355,1749730237384,-317.0,0.00022877,3]
[365512356,1749730237393,-317.0,0.00022877,3]
[365512357,1749730237402,-317.0,0.00022877,3]
[365512358,1749730237411,-3000.0,0.0002288,2]
[365512359,1749730237420,-3000.0,0.0002289,2]
[365512360,1749730237429,-151.0,0.00022899,7]
[365512361,1749730237438,-151.0,0.000229,7]
[365512362,1749730237448,-151.0,0.000229,7]
[365512363,1749730237457,-151.0,0.000229,7]
[365512364,1749730237467,-151.0,0.000229,7]
[365512365,1749730237476,-151.0,0.000229,7]
[365512366,1749730237489,-151.0,0.000229,7]
[365512367,1749730237500,-373.980021,0.000229,7]
[365512368,1749730237510,-151.0,0.000229,7]
[365512369,1749730237519,-373.980021,0.000229,7]
[365512370,1749730237529,-3000.0,0.000229,2]
[365512371,1749730237539,-151.0,0.000229,7]
[365512372,1749730237548,-151.0,0.000229,7]
[365512373,1749730237561,-365.863656,0.000229,7]
[365512374,1749730237571,-365.863656,0.000229,7]
[365512375,1749730237580,-236.077109,0.000229,7]
[365512376,1749730237589,-236.077109,0.000229,7]
[365512377,1749730237598,-11862.37599647,0.000229,3]
[365512378,1749730237607,-721.56,0.00022901,4]
[365512379,1749730237616,-3000.0,0.0002291,2]
[365512380,1749730237626,-151.0,0.00022912,6]
[365512381,1749730237635,-500.0,0.00022912,2]
[365512382,1749730237645,-160.0,0.00022912,2]
[365512383,1749730237655,-3000.0,0.0002292,2]
[365512384,1749730237664,-254.16675,0.0002292,7]
[365512385,1749730237674,-254.16675,0.0002292,7]
[365512386,1749730237684,-151.0,0.0002293,7]
[365512387,1749730237693,-151.0,0.0002293,7]
[365512388,1749730237702,-151.0,0.0002293,7]
[365512389,1749730237712,-525.867499,0.0002293,2]
[365512390,1749730237722,-525.867499,0.0002293,2]
[365512391,1749730237731,-3000.0,0.0002293,2]
[365512392,1749730237742,-151.0,0.0002293,7]
[365512393,1749730237754,-365.863656,0.0002293,7]
[365512394,1749730237763,-365.863656,0.0002293,7]
[365512395,1749730237773,-162.85516593,0.00022932,2]
[365512396,1749730237783,-3000.0,0.0002294,2]
[365512397,1749730237792,-151.0,0.0002295,7]
[365512398,1749730237801,-151.0,0.0002295,7]
[365512399,1749730237811,-151.0,0.0002295,7]
[365512400,1749730237820,-373.980021,0.0002295,7]
[365512401,1749730237830,-373.980021,0.0002295,7]
[365512402,1749730237839,-3000.0,0.0002295,2]
[365512403,1749730237848,-151.0,0.0002295,7]
[365512404,1749730237858,-151.0,0.0002295,7]
[365512405,1749730237867,-236.077109,0.0002295,7]
[365512406,1749730237876,-236.077109,0.0002295,7]
[365512407,1749730237884,-3000.0,0.0002296,2]
[365512408,1749730237894,-254.16675,0.0002296,7]
[365512409,1749730237903,-254.16675,0.0002296,7]
[365512410,1749730237912,-151.0,0.00022962,7]
[365512411,1749730237921,-525.867499,0.0002297,2]
[365512412,1749730237931,-525.867499,0.0002297,2]
[365512413,1749730237940,-3000.0,0.0002297,2]
[365512414,1749730237954,-365.863656,0.0002297,7]
[365512415,1749730237969,-365.863656,0.0002297,7]
[365512416,1749730237977,-151.0,0.0002298,7]
[365512417,1749730237989,-151.0,0.0002298,7]
[365512418,1749730238000,-151.0,0.0002298,7]
[365512419,1749730238010,-3000.0,0.0002298,2]
[365512420,1749730238019,-151.0,0.0002299,7]
[365512421,1749730238028,-3000.0,0.0002299,2]
[365512422,1749730238038,-151.0,0.0002299,7]
[365512423,1749730238048,-151.0,0.0002299,7]
[365512424,1749730238057,-151.0,0.0002299,7]
[365512425,1749730238067,-151.0,0.00022999,7]
[365512426,1749730238076,-373.980021,0.00022999,7]
[365512428,1749730238086,-373.980021,0.00022999,7]
[365512429,1749730238096,-236.077109,0.00022999,7]
[365512431,1749730238106,-236.077109,0.00022999,7]
[365512432,1749730238115,-632.49,0.00023,7]
[365512433,1749730238125,-3000.05184901,0.00023,14]
[365512434,1749730238135,-151.0,0.00023,7]
[365512436,1749730238145,-151.0,0.00023,7]
[365512438,1749730238154,-283.102826,0.00023,7]
[365512441,1749730238264,-154.468888,0.00023,7]
[365512442,1749730238275,-525.867499,0.00023,2]
[365512443,1749730238284,-525.867499,0.00023,2]
[365512444,1749730238293,-525.867499,0.00023,2]
[365512445,1749730238302,-525.867499,0.00023,2]
[365512446,1749730238311,-373.980021,0.00023,7]
[365512447,1749730238320,-373.980021,0.00023,7]
[365512448,1749730238330,-1787.47,0.00023,2]
[365512449,1749730238339,-3000.0,0.00023,2]
[365512450,1749730238348,-151.0,0.00023,5]
[365512451,1749730238356,-158.229924,0.00023,7]
[365512452,1749730238366,-365.863656,0.00023,7]
[365512453,1749730238375,-365.863656,0.00023,7]
[365512454,1749730238383,-365.863656,0.00023,7]
[365512455,1749730238392,-365.863656,0.00023,7]
[365512456,1749730238401,-236.077109,0.00023,7]
[365512457,1749730238410,-236.077109,0.00023,7]
[365512458,1749730238419,-254.16675,0.00023,7]
[365512459,1749730238429,-254.16675,0.00023,7]
[365512460,1749730238438,-254.16675,0.00023,7]
[365512461,1749730238448,-254.16675,0.00023,7]
[365512462,1749730238457,-1561.675247,0.00023,2]
[365512463,1749730238466,-835.15920933,0.00023,3]
[365512464,1749730238475,-1347.48467864,0.00023,2]
[365512465,1749730238484,-424.26423502,0.00023,3]
[365512466,1749730238493,-229.7508257,0.00023,3]
[365512467,1749730238504,-160.0,0.00023,3]
[365512468,1749730238513,-721.56,0.00023001,6]
[365512469,1749730238521,-1092.2095809,0.00023003,8]
[365512470,1749730238533,-218.929996,0.0002301,7]
[365512471,1749730238543,-151.0,0.0002301,7]
[365512472,1749730238552,-151.0,0.0002301,7]
[365512473,1749730238561,-3000.0,0.0002301,2]
[365512474,1749730238570,-151.0,0.0002301,7]
[365512475,1749730238579,-151.0,0.0002301,7]
[365512476,1749730238588,-460.0,0.00023013,4]
[365512477,1749730238597,-460.0,0.00023013,4]
[365512478,1749730238607,-226.25269098,0.00023013,4]
[365512479,1749730238826,-229.7508257,0.00021866,2]
[365512480,1749730238836,-233.74730902,0.00023013,4]
[365512481,1749730238846,-245.50186528,0.00023013,4]
[365512482,1749730238858,-214.49813472,0.00023013,4]
[365512483,1749730238868,-3000.0,0.0002302,2]
[365512484,1749730238878,-1672.10626529,0.0002303,2]
[365512496,1749730241024,-460.0,0.00021169,4]
[365512497,1749730241033,-460.0,0.00021443,4]
[365512498,1749730241043,-481.25895449,0.00021717,4]
[365512499,1749730241052,-1327.89373471,0.0002303,2]
[365512500,1749730241061,-179.805106,0.0002304,7]
[365512501,1749730241071,-525.867499,0.0002304,2]
[365512502,1749730241081,-525.867499,0.0002304,2]
[365512503,1749730241090,-373.980021,0.0002304,7]
[365512504,1749730241099,-373.980021,0.0002304,7]
[365512505,1749730241109,-3000.0,0.0002304,2]
[365512506,1749730241118,-365.863656,0.0002304,7]
[365512507,1749730241128,-365.863656,0.0002304,7]
[365512508,1749730241138,-236.077109,0.0002304,7]
[365512509,1749730241148,-236.077109,0.0002304,7]
[365512510,1749730241158,-254.16675,0.0002304,7]
[365512511,1749730241168,-254.16675,0.0002304,7]
[365512512,1749730241178,-151.0,0.0002305,7]
[365512513,1749730241188,-1130.1081345,0.0002305,2]
[365512541,1749730246697,-160.0,0.00020868,2]
[365512542,1749730246707,-2083.33,0.00021095,4]
[365512543,1749730246716,-165.38623123,0.00021095,4]
[365512544,1749730246727,-460.0,0.00021095,4]
[365512545,1749730246736,-98.79358257,0.00021369,4]
[365512548,1749730413228,308.0,0.00018,2]
[365512549,1749730414361,163.79,0.00013699,2]
[365512550,1749730414809,163.79,0.00013699,2]
[365512551,1749730415111,163.79,0.00013699,2]
[365512552,1749730415958,163.82559717,0.00013699,2]
[365512553,1749730423915,308.0,0.00018,2]
[365512592,1749730808004,2812.32181484,0.00016,2]
[365512603,1749731120272,162.423433,0.00013699,2]
[365512605,1749731173797,1204.19888375,0.00018,2]
[365512608,1749731282825,300.0,0.00017999,2]
[365512620,1749731342830,300.0,0.00017999,2]
[365512621,1749731357049,154.15271675,0.000179,2]
[365512624,1749731365035,241.42243681,0.000179,2]
[365512625,1749731399407,1122.36796983,0.00017982,2]
[365512626,1749731403165,300.0,0.00017999,2]
[365512627,1749731403765,240.0,0.00017999,2]
[365512628,1749731404954,1200.0,0.00017999,2]
[365512641,1749731431848,-3649.97656551,0.00018,2]
[365512746,1749731438087,-664.60997044,0.00018,2]
[365512747,1749731438144,-3726.37946595,0.00018,2]
[365512748,1749731438309,-5789.47913186,0.00018,2]
[365512749,1749731438319,-6474.99943831,0.00018,2]
[365512750,1749731438332,-177.78149143,0.0001837,2]
[365512751,1749731438341,-206.39327506,0.00018406,2]
[365512752,1749731438351,-2191.49660128,0.000189,2]
[365512753,1749731438362,-5000.0,0.00018938,2]
[365512754,1749731438371,-6988.7195574,0.00018975,2]
[365512755,1749731438381,-2011.24292827,0.000199,2]
[365512756,1749731438389,-2531.84822976,0.000199,2]
[365512757,1749731438400,-2531.84822976,0.000199,2]
[365512758,1749731438410,-2531.84822976,0.000199,2]
[365512759,1749731438419,-2531.84822976,0.000199,2]
[365512760,1749731438428,-2531.84822976,0.000199,2]
[365512761,1749731438437,-2531.84822976,0.00019934,2]
[365512762,1749731438447,-165.220383,0.0001995,2]
[365512763,1749731438456,-520.22565796,0.00019964,2]
[365512764,1749731438465,-167.60889129,0.00019972,2]
[365512765,1749731438475,-438.68804243,0.0002,2]
[365512766,1749731438484,-11166.22347564,0.00020001,2]
[365512767,1749731438493,-5903.2253285,0.00020025,2]
[365512769,1749731438503,-2531.84822976,0.00020141,2]
[365512770,1749731438514,-2531.84822976,0.00020348,3]
[365512771,1749731438523,-267.03,0.00020455,2]
[365512772,1749731438532,-160.0,0.00020486,2]
[365512773,1749731438542,-162.423433,0.00020548,2]
[365512774,1749731438553,-2531.84822976,0.00020555,3]
[365512775,1749731438562,-485.69,0.00020613,2]
[365512776,1749731438571,-2531.84822976,0.00020762,3]
[365512777,1749731438718,-160.0,0.00020824,2]
[365512778,1749731438728,-835.15920933,0.00020824,2]
[365512779,1749731438737,-160.0,0.00020824,2]
[365512780,1749731438747,-229.7508257,0.00020834,2]
[365512781,1749731438757,-424.26423502,0.00020834,2]
[365512782,1749731438767,-151.0,0.00020872,2]
[365512783,1749731438777,-2531.84822976,0.00020969,4]
[365512784,1749731438786,-160.0,0.00021006,3]
[365512785,1749731438796,-460.0,0.00021095,4]
[365512786,1749731438806,-460.0,0.00021095,4]
[365512787,1749731438815,-460.0,0.00021095,4]
[365512788,1749731438824,-440.0,0.00021095,4]
[365512789,1749731438833,-460.0,0.00021095,2]
[365512790,1749731438843,-460.0,0.00021095,4]
[365512791,1749731438852,-460.0,0.00021095,4]
[365512792,1749731438862,-460.0,0.00021095,4]
[365512793,1749731438872,-460.0,0.00021095,4]
[365512794,1749731438881,-460.0,0.00021095,4]
[365512795,1749731438890,-440.0,0.00021095,4]
[365512796,1749731438899,-1391.08,0.00021095,4]
[365512797,1749731438908,-460.0,0.00021095,4]
[365512798,1749731438918,-440.0,0.00021095,4]
[365512799,1749731438927,-460.0,0.00021095,4]
[365512800,1749731438936,-440.0,0.00021095,4]
[365512801,1749731438944,-460.0,0.00021095,4]
[365512802,1749731438954,-460.0,0.00021095,4]
[365512803,1749731438965,-460.0,0.00021095,4]
[365512804,1749731438974,-460.0,0.00021095,4]
[365512805,1749731438983,-460.0,0.00021095,4]
[365512806,1749731438993,-484.46,0.00021095,4]
[365512807,1749731439003,-928.04,0.00021095,4]
[365512808,1749731439012,-440.0,0.00021095,4]
[365512809,1749731439021,-202.91241446,0.00021095,4]
[365512810,1749731439031,-678.6,0.00021095,4]
[365512811,1749731439041,-460.0,0.00021095,4]
[365512812,1749731439050,-460.0,0.00021095,4]
[365512813,1749731439059,-460.0,0.00021095,4]
[365512814,1749731439069,-1258.71,0.00021095,4]
[365512815,1749731439079,-1992.41,0.00021095,4]
[365512816,1749731439089,-460.0,0.00021095,4]
[365512817,1749731439099,-460.0,0.00021095,4]
[365512818,1749731439108,-460.0,0.00021095,4]
[365512819,1749731439117,-460.0,0.00021095,4]
[365512820,1749731439126,-460.0,0.00021095,4]
[365512821,1749731439136,-460.0,0.00021095,4]
[365512822,1749731439145,-460.0,0.00021095,4]
[365512823,1749731439155,-460.0,0.00021095,4]
[365512824,1749731439164,-460.0,0.00021095,4]
[365512825,1749731439174,-460.0,0.00021095,4]
[365512826,1749731439183,-544.74875674,0.00021095,4]
[365512827,1749731439193,-460.0,0.00021095,4]
[365512828,1749731439202,-435.43783457,0.00021095,4]
[365512829,1749731439212,-460.0,0.00021095,4]
[365512830,1749731439222,-336.21154462,0.00021095,4]
[365512831,1749731439231,-577.83,0.00021095,4]
[365512832,1749731439241,-460.0,0.00021095,4]
[365512833,1749731439250,-460.0,0.00021095,4]
[365512834,1749731439260,-460.0,0.00021095,4]
[365512835,1749731439269,-460.0,0.00021095,4]